bitfinex/quotes_SOLUSD_20240727
["timestamp","ask_amount","ask_price","bid_price","bid_amount"]
[1722050668847,56.6,183.15,183.12,5.4608]
[1722050669036,11.6,183.15,183.12,5.4608]
[1722050669233,56.6,183.14,183.12,5.4608]
[1722050669935,45.0,183.14,183.12,5.4608]
[1722050672345,11.6,183.15,183.12,5.4608]
[1722050672536,5.4594,183.17,183.13,5.4605]
[1722050672737,11.6,183.15,183.11,13.6525]
[1722050673253,56.6,183.16,183.11,13.6525]
[1722050675251,56.6,183.16,183.12,5.4608]
[1722050677328,62.0597,183.16,183.12,5.4608]
[1722050677528,62.0597,183.16,183.11,13.6525]
[1722050677745,11.6,183.14,183.09,5.4614]
[1722050677927,56.6,183.13,183.09,5.4617]
[1722050678124,5.461,183.12,183.08,13.6551]
[1722050678356,45.0,183.11,183.09,5.4616]
[1722050678952,17.0606,183.13,183.09,5.4616]
[1722050678953,45.0,183.12,183.09,5.4616]
[1722050680051,45.0,183.12,183.04,1.09235264]
[1722050680353,45.0,183.12,183.04,20.0]
[1722050680952,45.0,183.12,183.06,11.6]
[1722050681258,45.0,183.12,183.09,5.4617]
[1722050681646,45.0,183.12,183.07,13.6554]
[1722050681951,11.6,183.11,183.08,5.462]
[1722050682160,5.4624,183.07,183.02,5.4638]
[1722050682461,56.6,183.06,183.02,5.4638]
[1722050683751,56.6,183.06,182.97,36.6662]
[1722050683953,56.6,183.06,183.01,5.4641]
[1722050683954,11.6,183.05,183.01,5.4641]
[1722050684155,45.0,183.04,183.02,5.4638]
[1722050685764,5.4621,183.08,183.01,13.6597]
[1722050685961,11.6,183.06,183.01,13.6597]
[1722050686259,11.6,183.04,183.01,13.6597]
[1722050686435,11.6,183.04,183.01,19.1238]
[1722050686630,11.6,183.04,183.02,5.4638]
[1722050686833,11.6,183.04,183.01,13.6597]
[1722050687236,11.6,183.05,183.01,13.6597]
[1722050687458,45.0,183.04,183.01,13.6597]
[1722050687634,45.0,183.04,183.03,5.4635]
[1722050687959,56.6,183.04,182.96,13.6638]
[1722050688168,11.6,183.01,182.99,5.4646]
[1722050688362,11.6,183.01,182.98,5.465]
[1722050688742,50.4633,183.04,182.98,13.662]
[1722050688938,45.0,183.04,183.01,5.4641]
[1722050689258,11.6,183.03,183.01,5.4641]
[1722050689861,11.6,183.03,183.0,5.4643]
[1722050691563,11.6,183.03,182.98,13.662]
[1722050691564,56.6,183.04,183.01,5.464]
[1722050691861,45.0,183.04,183.02,5.4638]
[1722050692259,5.4624,183.07,183.0,13.6606]
[1722050692260,56.6,183.05,183.0,13.6606]
[1722050692443,11.6,183.04,183.0,19.1247]
[1722050692760,17.0637,183.03,182.96,13.6635]
[1722050693063,11.6,183.02,182.96,13.6635]
[1722050693454,45.0,183.01,182.96,13.6635]
[1722050693666,45.0,183.01,182.99,5.4647]
[1722050694167,45.0,183.02,182.99,5.4647]
[1722050694643,45.0,183.02,183.0,5.4644]
[1722050694960,45.0,183.02,182.99,5.4646]
[1722050695266,11.6,183.01,182.99,5.4646]
[1722050695860,45.0,183.0,182.98,19.1271]
[1722050698650,45.0,183.0,182.99,5.4647]
[1722050699044,20.0,183.05,183.0,13.6607]
[1722050699360,11.6,183.04,183.02,5.4638]
[1722050699571,11.6,183.05,183.03,5.4635]
[1722050699771,11.6,183.05,183.02,5.4638]
[1722050699976,11.6,183.04,183.02,5.4638]
[1722050700150,11.6,183.04,183.01,5.4641]
[1722050700940,45.0,183.03,183.01,5.4641]
[1722050701863,28.39479102,183.1,183.02,13.6591]
[1722050701864,20.74827028,183.1,183.02,13.6591]
[1722050702169,20.74827028,183.1,183.04,5.4632]
[1722050702170,11.6,183.07,183.04,5.4632]
[1722050702349,11.6,183.07,183.03,5.4635]
[1722050702756,17.0627,183.06,183.02,13.6591]
[1722050702962,11.6,183.04,183.02,13.6591]
[1722050703169,11.6,183.05,183.02,13.6591]
[1722050703357,45.0,183.04,183.02,13.6591]
[1722050703746,45.0,183.04,183.0,5.4644]
[1722050703747,56.6,183.04,183.0,5.4644]
[1722050704572,56.6,183.04,183.01,5.4641]
[1722050706767,11.6,183.06,183.04,5.463]
[1722050707066,11.6,183.07,183.02,13.6591]
[1722050707251,11.6,183.07,183.05,5.4629]
[1722050707870,11.6,183.07,183.04,5.4632]
[1722050708284,45.0,183.06,183.04,5.4632]
[1722050710177,56.6,183.06,183.04,5.4632]
[1722050710571,11.6,183.05,182.98,13.662]
[1722050710772,45.0,183.04,183.0,5.4642]
[1722050711084,11.6,183.03,182.99,5.4647]
[1722050711396,45.0,183.02,182.99,5.4647]
[1722050712052,45.0,183.02,182.98,19.127]
[1722050712256,11.6,183.0,182.98,19.127]
[1722050712487,45.0,182.99,182.98,13.662]
[1722050712657,56.6,182.99,182.95,19.1303]
[1722050712981,45.0,182.99,182.95,13.6646]
[1722050713170,11.6,183.01,182.97,5.4653]
[1722050713481,45.0,183.0,182.98,5.465]
[1722050715760,45.0,183.0,182.99,5.4647]
[1722050715963,11.6,183.03,183.0,5.4644]
[1722050716189,11.6,183.03,182.96,11.6]
[1722050716190,11.6,183.03,183.01,5.4641]
[1722050716880,11.6,183.04,183.01,5.4641]
[1722050717068,11.6,183.05,183.01,5.4641]
[1722050717277,5.4627,183.06,183.01,5.4641]
[1722050717481,36.017,183.07,183.02,5.4637]
[1722050717482,11.6,183.05,183.02,5.4637]
[1722050717872,11.6,183.06,183.02,5.4637]
[1722050718085,21.4794,183.07,183.02,5.4637]
[1722050718291,11.6,183.06,183.02,5.4637]
[1722050718674,36.0237,183.11,183.04,13.6581]
[1722050718877,11.6,183.08,183.04,19.1213]
[1722050719180,17.0621,183.08,183.04,19.1213]
[1722050719486,17.0621,183.08,183.04,13.6581]
[1722050719878,45.0,183.07,183.04,13.6581]
[1722050720887,16.0237,183.11,183.07,13.6557]
[1722050721075,27.6237,183.11,183.07,13.6557]
[1722050721266,16.0237,183.11,183.07,13.6557]
[1722050721467,11.6,183.12,183.08,5.4618]
[1722050722075,17.0609,183.12,183.08,5.4618]
[1722050722671,17.0609,183.12,183.07,19.118]
[1722050722987,45.0,183.11,183.08,5.462]
[1722050723169,45.0,183.11,183.07,13.6557]
[1722050723170,11.6,183.09,183.07,13.6557]
[1722050723371,56.6,183.08,183.04,13.6579]
[1722050723588,11.6,183.07,183.05,5.4629]
[1722050723878,11.6,183.07,183.04,13.6579]
[1722050723879,56.6,183.06,183.04,19.1211]
[1722050724986,56.6,183.06,183.04,13.6579]
[1722050726690,56.6,183.06,183.0,13.6607]
[1722050726691,31.6,183.05,183.0,13.6607]
[1722050726881,11.6,183.02,183.0,13.6607]
[1722050727072,11.6,183.02,183.01,5.4641]
[1722050727389,11.6,183.03,183.02,5.4638]
[1722050727592,56.6,183.03,183.02,5.4638]
[1722050727795,45.0,183.03,183.02,5.4638]
[1722050728765,11.6,183.05,183.02,5.4638]
[1722050728965,45.0,183.04,183.03,5.4635]
[1722050729787,45.0,183.04,183.02,5.4638]
[1722050729990,45.0,183.05,183.02,5.4638]
[1722050731574,45.0,183.05,183.0,13.6607]
[1722050731575,45.0,183.05,183.03,13.6587]
[1722050731783,45.0,183.06,183.04,5.4632]
[1722050733599,45.0,183.06,183.03,19.1222]
[1722050733800,5.4616,183.1,183.05,5.4627]
[1722050734097,11.6,183.09,183.07,5.4622]
[1722050734399,11.6,183.1,183.07,5.4622]
[1722050734999,11.1,183.1,183.07,5.4622]
[1722050735202,11.6,183.08,183.05,19.1198]
[1722050735383,11.6,183.09,183.07,5.4623]
[1722050735688,11.6,183.09,183.05,13.6569]
[1722050735689,11.6,183.09,183.08,5.462]
[1722050736473,11.6,183.09,183.02,13.6596]
[1722050736679,11.6,183.07,183.03,5.4633]
[1722050736893,45.0,183.06,183.04,5.4631]
[1722050737269,56.6,183.06,183.02,19.1232]
[1722050737478,56.6,183.06,183.03,5.4635]
[1722050737692,11.6,183.05,183.02,13.6596]
[1722050737887,45.0,183.04,183.02,19.1232]
[1722050738503,56.6,183.04,183.01,5.4641]
[1722050738803,11.6,183.03,182.99,13.6617]
[1722050739289,45.0,183.04,183.01,13.6599]
[1722050739797,25.4618,183.09,183.04,5.4632]
[1722050739980,11.6,183.06,183.03,13.6583]
[1722050740174,45.0,183.05,183.03,13.6583]
[1722050740674,45.0,183.05,183.04,5.4632]
[1722050741500,45.0,183.05,183.03,19.1218]
[1722050742083,45.0,183.05,183.04,5.4632]
[1722050742596,45.0,183.05,183.02,5.4638]
[1722050742888,45.0,183.05,182.9,1.09268345]
[1722050742889,20.0,183.04,183.0,13.6611]
[1722050743090,45.0,183.03,183.0,13.6611]
[1722050743316,45.0,183.04,183.0,13.6611]
[1722050743685,45.0,183.04,183.01,5.4641]
[1722050746096,36.9138,183.1,183.03,5.4632]
[1722050746097,5.4621,183.08,183.03,5.4632]
[1722050746298,5.4621,183.08,183.02,13.6591]
[1722050746508,25.4621,183.08,183.03,5.4635]
[1722050747599,20.0,183.02,182.94,27.3303]
[1722050747904,45.0,183.01,182.97,5.4653]
[1722050749013,50.4642,183.01,182.96,5.4656]
[1722050749200,45.0,183.01,182.98,5.465]
[1722050749401,45.0,183.02,182.99,5.4647]
[1722050749608,45.0,183.03,182.98,5.465]
[1722050750511,50.4638,183.03,182.98,5.465]
[1722050751088,45.0,183.03,182.97,13.6634]
[1722050751614,20.0,183.01,182.94,13.6656]
[1722050751822,50.4645,183.0,182.96,5.4656]
[1722050752311,45.0,183.0,182.96,5.4656]
[1722050753012,45.0,183.0,182.98,5.4648]
[1722050753312,45.0,183.0,182.99,5.4647]
[1722050753612,5.4633,183.04,182.99,5.4647]
[1722050753793,5.4636,183.03,182.98,13.6622]
[1722050754481,20.0,183.05,182.98,13.6622]
[1722050754482,5.4633,183.04,182.98,13.6622]
[1722050754687,25.463,183.05,183.0,5.4644]
[1722050754887,5.4636,183.03,182.98,19.1272]
[1722050755204,45.0,183.02,182.98,19.1272]
[1722050755911,45.0,183.02,182.99,5.4647]
[1722050756097,45.0,183.03,182.99,5.4647]
[1722050756487,50.4636,183.03,182.99,5.4647]
[1722050758012,45.0,183.03,183.0,5.4643]
[1722050758217,15.0809,183.06,183.01,5.4639]
[1722050758402,20.5437,183.06,183.01,5.4639]
[1722050758808,15.0809,183.06,183.02,5.4637]
[1722050759014,5.4624,183.07,183.02,5.4637]
[1722050759407,50.4627,183.06,183.02,5.4637]
[1722050760221,50.4627,183.06,183.01,5.4641]
[1722050760396,5.4631,183.05,183.0,13.6607]
[1722050760722,45.0,183.04,183.0,19.1248]
[1722050761317,56.63,183.04,183.0,19.1248]
[1722050762191,56.63,183.04,183.01,5.4639]
[1722050762395,56.63,183.04,183.02,5.4636]
[1722050762596,56.63,183.04,183.0,13.6607]
[1722050762901,5.4637,183.03,182.98,5.4648]
[1722050763108,45.0,183.02,182.98,5.4648]
[1722050765018,56.63,183.02,182.98,5.4648]
[1722050766397,45.0,183.02,183.01,5.4641]
[1722050766717,11.63,183.04,183.01,5.4641]
[1722050766931,45.0,183.03,183.01,5.4641]
[1722050767304,45.0,183.03,183.0,13.6606]
[1722050767305,45.0,183.03,183.0,19.125]
[1722050767818,45.0,183.03,182.96,13.6634]
[1722050768119,56.63,183.03,182.96,25.2934]
[1722050768328,56.63,183.03,183.0,5.4644]
[1722050769008,45.0,183.03,183.0,5.4644]
[1722050769723,45.0,183.03,183.01,5.464]
[1722050769897,45.0,183.04,183.01,5.464]
[1722050771004,45.0,183.04,183.0,5.4643]
[1722050772317,45.0,183.04,182.98,11.63]
[1722050772527,11.63,183.07,183.01,25.2904]
[1722050772701,5.462,183.09,183.03,5.4635]
[1722050773021,11.63,183.07,183.03,5.4635]
[1722050773823,56.63,183.06,183.03,5.4635]
[1722050779004,45.0,183.06,183.03,5.4635]
[1722050782716,50.4627,183.06,183.01,19.1245]
[1722050782921,62.0927,183.06,183.01,19.1245]
[1722050786727,62.0927,183.06,183.02,5.4638]
[1722050786935,56.63,183.06,183.02,5.4638]
[1722050787434,20.0,183.08,183.01,13.6604]
[1722050787612,11.63,183.07,183.01,13.6604]
[1722050787813,5.4612,183.11,183.03,25.2883]
[1722050788033,11.63,183.1,183.06,5.4625]
[1722050788227,17.0915,183.1,183.05,5.4629]
[1722050788727,11.63,183.09,183.05,5.4629]
[1722050788918,45.0,183.08,183.05,5.4629]
[1722050793031,45.0,183.08,183.03,13.6583]
[1722050793032,45.0,183.08,183.04,5.4632]
[1722050794616,45.0,183.08,183.05,13.657]
[1722050794812,45.0,183.08,183.06,5.4624]
[1722050795117,31.63,183.07,183.01,13.6598]
[1722050795319,56.63,183.06,183.01,13.6598]
[1722050795719,56.63,183.06,183.02,5.4636]
[1722050796222,56.63,183.06,183.03,5.4635]
[1722050796824,56.63,183.06,183.04,5.4632]
[1722050797040,45.0,183.06,183.04,5.4632]
[1722050797333,45.0,183.06,183.04,4.4632]
[1722050799233,56.63,183.07,183.04,4.4632]
[1722050799542,65.2018926,183.07,183.04,4.4632]
[1722050803148,65.2018926,183.07,183.05,5.4629]
[1722050803320,53.5718926,183.07,183.05,5.4629]
[1722050803946,53.5718926,183.07,183.01,11.63]
[1722050803947,53.5718926,183.07,183.06,19.1193]
[1722050805631,53.5718926,183.07,183.04,5.463]
[1722050805852,53.5718926,183.07,183.02,11.63]
[1722050805853,53.5718926,183.07,183.05,5.4629]
[1722050806530,53.5718926,183.07,183.02,11.63]
[1722050806531,53.5718926,183.07,183.06,5.4626]
[1722050806730,53.5718926,183.07,183.05,5.4629]
[1722050807623,53.5718926,183.07,183.03,13.6584]
[1722050807624,53.5718926,183.07,183.04,5.4632]
[1722050807826,85.2018926,183.07,183.04,5.4632]
[1722050808638,85.2018926,183.07,183.03,19.1218]
[1722050809230,65.2018926,183.07,183.03,19.1218]
[1722050809429,65.2018926,183.07,183.04,5.4632]
[1722050812028,85.2018926,183.07,183.04,5.4632]
[1722050812755,65.2018926,183.07,183.05,5.4627]
[1722050813858,65.2018926,183.07,183.04,5.4632]
[1722050815330,65.2018926,183.07,183.03,13.6584]
[1722050815331,11.63,183.05,182.99,13.6615]
[1722050815540,56.63,183.04,182.99,13.6615]
[1722050815933,56.63,183.04,183.01,5.4639]
[1722050818543,45.0,183.04,183.01,13.6597]
[1722050818860,11.63,183.07,183.05,5.4629]
[1722050819237,11.63,183.07,183.04,19.1208]
[1722050820242,45.0,183.06,183.03,5.4635]
[1722050820455,45.0,183.06,183.01,13.6601]
[1722050820456,56.63,183.06,183.01,13.6601]
[1722050820632,11.63,183.05,183.01,13.6601]
[1722050820963,45.0,183.04,183.03,5.4635]
[1722050821149,45.0,183.06,183.04,13.6581]
[1722050821761,14.28585981,183.09,183.04,25.2881]
[1722050821933,11.63,183.1,183.06,13.6563]
[1722050822142,11.63,183.1,183.07,5.4623]
[1722050822540,11.63,183.1,183.06,19.1189]
[1722050822747,11.63,183.08,183.04,5.463]
[1722050823267,45.0,183.07,183.04,5.463]
[1722050823634,5.4627,183.06,183.02,19.1228]
[1722050823935,45.0,183.05,183.03,5.4634]
[1722050824440,45.0,183.06,183.03,5.4634]
[1722050824854,45.0,183.06,183.04,5.4632]
[1722050825038,31.63,183.05,182.98,13.6623]
[1722050825244,11.63,183.02,182.99,5.4646]
[1722050825754,11.63,183.02,182.98,13.6623]
[1722050825755,45.0,183.01,183.0,5.4644]
[1722050826459,11.63,183.02,182.96,21.4946]
[1722050826662,11.63,183.04,183.02,5.4636]
[1722050826848,45.0,183.03,183.01,13.6604]
[1722050827158,56.63,183.03,183.01,13.6604]
[1722050827338,45.0,183.03,183.01,13.6604]
[1722050828143,45.0,183.03,183.01,19.1244]
[1722050829140,45.0,183.03,183.01,5.4641]
[1722050833648,45.0,183.03,183.02,5.4638]
[1722050834358,11.63,183.05,183.02,5.4638]
[1722050834668,45.0,183.04,183.02,5.4638]
[1722050836955,45.0,183.04,183.01,13.6599]
[1722050837660,62.0933,183.04,182.99,5.4647]
[1722050838169,11.63,183.03,182.99,5.4647]
[1722050838376,45.0,183.02,182.99,5.4647]
[1722050838673,45.0,183.02,182.98,5.465]
[1722050840077,45.0,183.02,182.99,5.4647]
[1722050842687,45.0,183.02,182.99,13.6612]
[1722050844154,45.0,183.02,183.01,5.4641]
[1722050845282,45.0,183.02,183.0,5.4644]
[1722050847587,45.0,183.02,183.01,5.4641]
[1722050852259,20.0,183.08,183.01,13.6597]
[1722050852489,11.63,183.06,183.03,5.4633]
[1722050852673,31.63,183.05,183.01,19.1236]
[1722050853082,11.63,183.04,183.01,19.1236]
[1722050853284,22.12245962,183.09,182.94,27.3304]
[1722050853285,20.0,183.0,182.94,27.3304]
[1722050853480,20.0,183.0,182.97,5.4653]
[1722050853791,20.0,183.0,182.94,27.3304]
[1722050853792,45.0,182.99,182.96,5.4656]
[1722050856487,45.0,182.99,182.91,13.6673]
[1722050856488,28.0423,182.97,182.91,13.6673]
[1722050856678,28.0423,182.97,182.91,19.1342]
[1722050856679,11.63,182.94,182.91,19.1342]
[1722050856988,11.63,182.94,182.92,5.4668]
[1722050857994,11.63,182.95,182.92,5.4668]
[1722050858168,20.0,182.96,182.93,5.4665]
[1722050858169,11.63,182.96,182.93,5.4665]
[1722050858372,28.0423,182.97,182.94,5.466]
[1722050858675,16.4123,182.97,182.93,13.6659]
[1722050858873,11.63,182.96,182.93,13.6659]
[1722050859081,28.0423,182.97,182.93,14.2479481]
[1722050859406,28.0423,182.97,182.93,19.7142481]
[1722050860185,11.63,182.96,182.93,6.0485481]
[1722050860693,11.63,182.96,182.93,0.5820481]
[1722050864197,11.63,182.96,182.93,6.0485481]
[1722050864569,11.63,182.96,182.93,0.5820481]
[1722050866186,11.63,182.97,182.93,0.5820481]
[1722050866777,11.63,182.97,182.93,6.0482481]
[1722050867704,37.0957,182.96,182.93,0.5820481]
[1722050870101,17.0957,182.96,182.93,0.5820481]
[1722050871500,37.0957,182.96,182.93,0.5820481]
[1722050871703,5.466,182.95,182.93,0.5820481]
[1722050872200,11.63,182.95,182.93,0.5820481]
[1722050873603,25.4657,182.96,182.93,0.5820481]
[1722050873796,11.63,182.95,182.93,0.5820481]
[1722050876818,11.63,182.95,182.93,6.0485481]
[1722050876997,5.71325081,182.99,182.93,0.5820481]
[1722050877316,25.4642,183.01,182.96,5.4654]
[1722050877487,6.0292,183.04,182.93,0.5820481]
[1722050877488,11.63,183.04,182.97,25.2926]
[1722050877893,17.0933,183.04,182.99,5.4645]
[1722050878902,5.4635,183.03,182.97,25.2926]
[1722050879196,25.4635,183.03,182.97,25.2926]
[1722050879393,25.4635,183.03,182.98,5.4649]
[1722050880324,37.0935,183.03,182.98,5.4649]
[1722050881019,11.63,183.03,182.99,5.4647]
[1722050881404,31.63,183.03,182.99,5.4647]
[1722050881800,11.63,183.04,183.0,5.4644]
[1722050882110,5.463,183.05,183.0,5.4644]
[1722050882910,5.4638,183.03,182.99,5.4647]
[1722050883107,17.0938,183.03,182.99,5.4647]
[1722050883305,11.63,183.02,182.98,5.465]
[1722050883695,11.63,183.01,182.96,19.1293]
[1722050884023,17.0942,183.01,182.96,19.1293]
[1722050884604,8.57501821,183.0,182.96,19.1293]
[1722050885603,8.57501821,183.0,182.97,5.4653]
[1722050888023,8.57501821,183.0,182.96,19.1295]
[1722050888227,20.20501821,183.0,182.96,19.1295]
[1722050889127,11.63,182.99,182.96,19.1295]
[1722050890112,11.63,182.98,182.96,13.6639]
[1722050890316,11.63,182.98,182.96,19.1294]
[1722050891114,11.63,182.99,182.96,19.1294]
[1722050892203,11.63,182.99,182.97,5.4653]
[1722050892431,20.20501821,183.0,182.96,13.6639]
[1722050892609,8.57501821,183.0,182.96,13.6639]
[1722050892927,8.57501821,183.0,182.98,5.4649]
[1722050893135,20.20501821,183.0,182.97,5.4652]
[1722050893449,20.20501821,183.0,182.98,5.465]
[1722050893727,40.20501821,183.0,182.96,13.6639]
[1722050894027,11.63,182.99,182.96,13.6639]
[1722050894221,34.03941821,183.0,182.93,0.5820481]
[1722050894222,11.63,182.97,182.93,0.5820481]
[1722050894422,11.63,182.96,182.93,6.0483481]
[1722050895504,20.0,182.95,182.93,0.5820481]
[1722050895720,11.63,182.95,182.93,0.5820481]
[1722050897135,31.63,182.95,182.93,0.5820481]
[1722050898327,11.63,182.95,182.93,0.5820481]
[1722050898627,31.63,182.95,182.93,0.5820481]
[1722050901918,20.0,182.98,182.93,0.5820481]
[1722050902125,20.0,182.98,182.95,5.4659]
[1722050902126,11.63,182.97,182.95,5.4659]
[1722050902316,11.63,182.97,182.94,5.4662]
[1722050903138,11.63,182.97,182.95,5.4659]
[1722050903433,8.57501821,183.0,182.95,11.63]
[1722050903646,11.63,183.02,182.99,5.4647]
[1722050904512,11.63,183.03,182.99,5.4647]
[1722050905331,17.0936,183.03,182.98,5.465]
[1722050906037,11.63,183.03,182.99,5.4645]
[1722050906228,5.71875454,183.06,182.99,13.6612]
[1722050906537,5.71875454,183.06,183.03,5.4635]
[1722050906742,17.34875454,183.06,183.03,5.4635]
[1722050907041,17.34875454,183.06,183.02,5.4638]
[1722050907242,11.63,183.05,183.02,5.4638]
[1722050907742,5.71875454,183.06,183.05,5.4629]
[1722050907919,11.63,183.07,183.05,5.4629]
[1722050908736,11.63,183.06,183.03,19.1216]
[1722050910544,5.4621,183.08,183.03,19.1216]
[1722050910719,11.63,183.09,183.05,5.4627]
[1722050912535,5.71669473,183.13,183.06,13.6565]
[1722050912728,11.63,183.12,183.06,13.6565]
[1722050913250,11.63,183.12,183.06,25.2865]
[1722050913553,11.63,183.12,183.06,13.6565]
[1722050913850,5.71669473,183.13,183.06,13.6565]
[1722050914027,11.63,183.12,183.08,5.4618]
[1722050914731,11.63,183.12,183.06,19.119]
[1722050914927,11.63,183.08,183.03,6.6587]
[1722050915128,37.0922,183.08,183.03,6.6587]
[1722050915346,5.71669473,183.13,183.03,6.6587]
[1722050915347,17.0924,183.07,183.03,6.6587]
[1722050916045,11.63,183.07,183.03,12.1222]
[1722050916630,11.63,183.07,183.04,5.4632]
[1722050917347,11.63,183.07,183.03,5.4635]
[1722050917548,11.63,183.06,183.03,5.4635]
[1722050917854,11.63,183.06,183.04,5.4631]
[1722050918246,11.63,183.06,183.03,5.4635]
[1722050919727,11.63,183.06,183.04,5.4631]
[1722050921031,11.63,183.07,183.04,5.4631]
[1722050922052,11.63,183.09,183.04,13.6574]
[1722050922257,11.63,183.1,183.07,5.4623]
[1722050922554,11.63,183.11,183.09,5.4617]
[1722050922728,11.63,183.11,183.08,13.6544]
[1722050922934,11.63,183.11,183.08,19.1164]
[1722050923145,11.63,183.1,183.07,5.4623]
[1722050923549,11.63,183.1,183.06,5.4626]
[1722050923759,11.63,183.08,183.05,13.6572]
[1722050923948,11.63,183.07,183.05,13.6572]
[1722050924337,11.63,183.06,183.01,13.6598]
[1722050924652,11.63,183.05,183.01,13.6598]
[1722050925254,11.63,183.05,183.03,5.4635]
[1722050926254,11.63,183.06,183.03,5.4635]
[1722050931255,11.63,183.06,183.04,5.4631]
[1722050931657,11.63,183.06,183.01,13.6598]
[1722050931658,11.63,183.08,183.05,5.4628]
[1722050935551,11.63,183.08,183.06,5.4626]
[1722050936166,25.48,183.12,183.07,5.4622]
[1722050936167,11.63,183.1,183.07,5.4622]
[1722050936456,11.63,183.11,183.05,13.6569]
[1722050936652,11.63,183.11,183.07,5.4623]
[1722050936963,11.63,183.1,183.06,5.4626]
[1722050937261,11.63,183.1,183.02,13.6594]
[1722050937262,11.63,183.07,183.02,13.6594]
[1722050937449,11.63,183.06,183.02,19.1232]
[1722050937636,11.63,183.06,183.03,5.4635]
[1722050938042,31.63,183.06,183.03,5.4635]
[1722050938477,31.63,183.06,183.02,13.6594]
[1722050938662,11.63,183.04,183.02,13.6594]
[1722050938865,11.63,183.03,183.0,5.4644]
[1722050939041,56.63,183.02,182.99,19.1265]
[1722050939359,56.63,183.02,183.0,5.4644]
[1722050940569,45.0,183.02,183.01,5.4641]
[1722050942960,45.0,183.02,183.0,5.4644]
[1722050943561,31.63,183.04,183.0,5.4644]
[1722050943747,31.63,183.04,183.01,5.4641]
[1722050944566,20.0,183.04,183.02,5.4638]
[1722050945770,20.0,183.04,183.01,5.4641]
[1722050949782,11.63,183.06,183.02,5.4638]
[1722050949967,40.7502,183.09,183.01,13.6599]
[1722050950157,40.7502,183.09,183.04,5.463]
[1722050950375,20.0,183.07,183.04,5.463]
[1722050950873,20.0,183.04,183.01,13.6599]
[1722050951053,31.63,183.04,183.01,13.6599]
[1722050951252,31.63,183.04,183.0,5.4641]
[1722050953579,31.63,183.04,182.97,38.9558]
[1722050953580,31.63,183.02,182.97,5.4653]
[1722050953780,31.63,183.0,182.96,5.4656]
[1722050954162,20.0,182.98,182.95,19.1306]
[1722050954358,25.4645,183.0,182.96,5.4656]
[1722050954582,37.0945,183.0,182.96,5.4656]
[1722050954960,11.63,183.01,182.98,5.465]
[1722050955165,37.0938,183.02,182.97,5.4653]
[1722050955562,37.0938,183.02,182.98,5.465]
[1722050956287,37.0938,183.02,182.97,5.4653]
[1722050956657,20.0,182.99,182.96,5.4655]
[1722050956982,20.0,182.99,182.95,13.6647]
[1722050957571,20.0,182.99,182.95,19.1304]
[1722050957774,37.0947,182.99,182.95,13.6647]